bitfinex-derivatives/quotes_ETHF0:USTF0_20251220
["timestamp","ask_amount","ask_price","bid_price","bid_amount"]
[1766201583691,1.74714203,2993.6,2993.0,3.341]
[1766201583982,1.74714203,2993.5,2993.0,3.341]
[1766201584684,1.74701178,2993.6,2993.0,3.341]
[1766201586088,1.74701178,2993.2,2992.4,2.11318015]
[1766201586387,0.00498247,2993.1,2992.5,3.341]
[1766201587289,0.00498247,2993.1,2992.5,3.34977226]
[1766201598598,1.74701178,2992.6,2992.4,1.07561074]
[1766201598799,1.74701178,2992.8,2992.4,1.07561074]
[1766201599701,1.74701178,2992.8,2992.4,1.07844925]
[1766201603406,3.341,2992.9,2992.4,1.07844925]
[1766201604405,0.00498247,2993.1,2992.4,1.07844925]
[1766201604602,3.342,2993.0,2992.4,1.07844925]
[1766201612920,3.342,2993.0,2992.7,0.0008]
[1766201612921,1.74785414,2992.8,2992.7,0.0008]
[1766201613119,1.74785414,2992.8,2992.3,0.00501211]
[1766201613320,3.342,2992.7,2992.3,0.00501211]
[1766201613820,3.342,2992.7,2992.0,3.342]
[1766201614022,5.08985414,2992.7,2992.0,3.34457845]
[1766201614822,5.08985414,2992.7,2992.1,0.00501211]
[1766201615923,3.342,2992.7,2992.1,0.00501211]
[1766201620614,3.342,2992.6,2992.1,0.00501211]
[1766201622223,0.00498247,2993.1,2992.3,1.74785414]
[1766201622525,3.34698247,2993.1,2992.1,3.34701211]
[1766201627127,3.34698247,2993.1,2992.1,5.09486625]
[1766201627327,3.342,2993.0,2992.1,5.09486625]
[1766201632830,3.34698247,2993.1,2992.1,5.09486625]
[1766201633737,0.00498247,2993.1,2992.1,5.09486625]
[1766201633935,0.00498247,2993.1,2992.4,1.74785414]
[1766201634135,0.00498247,2993.1,2992.5,3.342]
[1766201637332,0.16707,2994.4,2992.6,1.74785414]
[1766201637638,2.545,2993.7,2992.6,1.74785414]
[1766201637839,3.342,2993.6,2992.6,1.74785414]
[1766201638335,0.00501211,2993.4,2992.6,1.74785414]
[1766201638541,3.342,2993.3,2992.6,1.74785414]
[1766201639540,0.00501211,2993.2,2992.6,1.74785414]
[1766201640438,0.00501211,2993.2,2992.5,3.342]
[1766201642444,1.211e-05,2993.2,2992.5,3.342]
[1766201649946,1.211e-05,2993.2,2992.1,0.00501211]
[1766201650152,1.74786625,2993.2,2992.1,3.34701211]
[1766201650847,1.74785414,2992.9,2992.1,0.00501211]
[1766201651054,3.342,2992.8,2992.1,0.00501211]
[1766201651253,3.342,2992.8,2992.1,1.211e-05]
[1766201651454,3.342,2992.8,2992.0,0.00257845]
[1766201652451,3.342,2992.8,2992.1,0.00501211]
[1766201652858,5.0901511,2992.8,2992.1,0.00501211]
[1766201654151,5.0901511,2992.8,2992.1,1.211e-05]
[1766201661550,1.7481511,2992.5,2991.9,1.15771431]
[1766201661752,3.342,2992.4,2991.9,1.15771431]
[1766201662557,3.342,2992.4,2991.9,1.16686711]
[1766201662959,1.7481511,2992.2,2991.4,3.342]
[1766201663259,3.342,2992.1,2991.4,3.342]
[1766201663962,3.34516458,2992.1,2991.5,0.00501211]
[1766201665363,5.09389056,2992.1,2991.5,0.00501211]
[1766201665562,5.09389056,2992.1,2991.5,1.211e-05]
[1766201667463,1.74872598,2991.8,2991.5,1.211e-05]
[1766201667656,1.74872598,2991.8,2991.4,4.776e-05]
[1766201667657,3.342,2991.7,2991.4,4.776e-05]
[1766201667856,3.342,2991.7,2991.1,3.342]
[1766201668659,3.34701211,2991.7,2991.1,3.34701211]
[1766201668857,3.34701211,2991.7,2991.1,3.34969523]
[1766201682793,3.34701211,2991.7,2991.1,5.09842121]
[1766201683987,2.19661211,2991.7,2991.1,5.09842121]
[1766201684187,1.06661211,2991.7,2991.1,5.09842121]
[1766201684484,0.00501211,2991.7,2991.1,5.09842121]
[1766201684684,1.7919,2991.7,2991.3,1.74872598]
[1766201684891,3.343,2991.8,2991.3,1.74872598]
[1766201685390,3.343,2991.8,2991.1,5.09842121]
[1766201685588,0.00501211,2991.7,2991.1,5.09842121]
[1766201688194,0.00501211,2991.7,2991.1,3.34969523]
[1766201696300,1.211e-05,2991.7,2991.1,3.34969523]
[1766201696499,3.343,2991.8,2991.1,3.34969523]
[1766201697487,2.7785,2991.8,2991.1,3.34969523]
[1766201698498,0.00501211,2991.7,2991.1,3.34969523]
[1766201699993,0.00501211,2991.7,2991.1,5.09842121]
[1766201700193,1.211e-05,2991.7,2991.1,5.09842121]
[1766201703604,1.211e-05,2991.7,2991.3,1.74872598]
[1766201703804,1.211e-05,2991.7,2991.4,3.343]
[1766201704299,6.385,2993.5,2991.5,1.74872598]
[1766201704500,5.09172598,2992.6,2991.4,3.343]
[1766201704705,1.74872598,2992.4,2991.4,3.343]
[1766201705393,1.75133236,2992.4,2991.4,3.343]
[1766201707998,3.343,2992.3,2991.5,3.343]
[1766201710001,1.74872598,2992.2,2991.2,1.74872598]
[1766201710209,1.74872598,2992.0,2991.3,3.343]
[1766201713912,5.09172598,2992.0,2991.3,3.343]
[1766201714409,5.09172598,2992.0,2991.1,0.00769523]
[1766201714609,5.09172598,2992.0,2991.1,3.35069523]
[1766201716314,3.343,2992.0,2991.1,3.35069523]
[1766201716513,5.09172598,2992.0,2991.1,3.35069523]
[1766201718111,3.343,2992.0,2991.1,3.35069523]
[1766201718308,5.09172598,2992.0,2991.1,3.35069523]
[1766201720022,1.74872598,2991.8,2991.1,3.35069523]
[1766201720207,3.343,2992.0,2991.1,3.35069523]
[1766201720208,1.74872598,2991.6,2991.1,3.35069523]
[1766201720512,1.74872598,2991.4,2991.1,0.00769523]
[1766201720708,1.74872598,2991.6,2991.1,0.00769523]
[1766201720909,1.74937119,2991.6,2991.1,0.00769523]
[1766201721715,1.74937119,2991.6,2990.8,3.343]
[1766201722705,0.00501211,2991.5,2990.9,0.00501211]
[1766201722910,3.343,2991.4,2990.9,0.00501211]
[1766201725315,5.09237119,2991.4,2990.9,0.00501211]
[1766201725715,1.74937119,2991.2,2990.4,3.343]
[1766201725915,3.343,2991.1,2990.4,3.343]
[1766201726616,3.343,2991.1,2990.5,0.00501211]
[1766201726819,3.343,2991.1,2990.5,1.7543833]
[1766201727009,0.3176,2991.1,2990.5,1.7543833]
[1766201727313,2.2882,2991.2,2990.5,1.7543833]
[1766201727519,2.2882,2991.2,2990.5,0.00501211]
[1766201729006,3.343,2991.3,2990.5,0.00501211]
[1766201730019,0.00501211,2991.5,2990.5,0.00501211]
[1766201730319,3.343,2991.4,2990.5,0.00501211]
[1766201734423,0.00501211,2991.5,2990.5,0.00501211]
[1766201734617,3.343,2991.4,2990.5,0.00501211]
[1766201740627,0.00501211,2991.5,2990.5,0.00501211]
[1766201742626,0.00501211,2991.5,2990.6,3.343]
[1766201754231,0.00501211,2991.5,2990.5,0.00501211]
[1766201754432,0.00501211,2991.5,2990.5,3.34901211]
[1766201754828,1.74922607,2991.4,2990.5,3.34901211]
[1766201755134,3.344,2991.3,2990.5,3.34901211]
[1766201756635,0.00501211,2991.5,2990.5,3.34901211]
[1766201756838,3.344,2991.4,2990.6,1.74922607]
[1766201757036,0.00501211,2991.5,2990.6,1.74922607]
[1766201757334,3.344,2991.4,2990.6,1.74922607]
[1766201759246,0.00501211,2991.5,2990.6,1.74922607]
[1766201759442,3.344,2991.4,2990.5,5.09823818]
[1766201769253,0.00501211,2991.5,2990.5,5.09823818]
[1766201769647,3.344,2991.4,2990.5,5.09823818]
[1766201770347,0.00501211,2991.5,2990.8,1.74922607]
[1766201770348,1.211e-05,2991.5,2990.8,1.74922607]
[1766201770548,1.211e-05,2991.5,2990.9,3.344]
[1766201773151,1.211e-05,2991.5,2990.9,5.09322607]
[1766201787362,1.211e-05,2991.5,2991.2,1.74851183]
[1766201787662,1.211e-05,2991.5,2991.3,3.343]
[1766201791156,1.211e-05,2991.5,2991.3,5.09155051]
[1766201791463,3.34560638,2992.4,2991.3,5.09155051]
[1766201791664,0.00260638,2992.4,2992.1,1.74855051]
[1766201791874,3.343,2992.7,2992.1,1.74855051]
[1766201792367,3.34801211,2992.7,2992.1,1.75356262]
[1766201792671,0.00501211,2992.7,2992.1,1.75356262]
[1766201792870,3.35094222,2992.7,2992.1,1.75356262]
[1766201793168,3.35094222,2992.7,2992.1,0.00501211]
[1766201796566,0.00794222,2992.7,2992.1,0.00501211]
[1766201796869,3.35094222,2992.7,2992.1,0.00501211]
[1766201802069,0.00794222,2992.7,2992.4,1.74855051]
[1766201802270,3.343,2993.0,2992.4,1.74855051]
[1766201803270,3.3473065,2993.0,2992.4,1.74855051]
[1766201804572,0.0043065,2993.0,2992.4,1.74855051]
[1766201804773,0.0043065,2993.0,2992.6,1.74855051]
[1766201804975,0.0043065,2993.0,2992.6,1.75164256]
[1766201806380,3.343,2993.3,2992.6,1.75164256]
[1766201807378,3.34535105,2993.3,2992.6,1.75164256]
[1766201808681,3.34535105,2993.3,2992.6,0.00309205]
[1766201808880,3.34535105,2993.3,2992.6,1.75164256]
[1766201810484,3.34535105,2993.3,2992.6,0.00309205]
[1766201810684,3.34535105,2993.3,2992.6,1.75164256]
[1766201811087,0.00235105,2993.3,2992.6,1.75164256]
[1766201811287,0.00235105,2993.3,2992.6,0.00309205]
[1766201815890,1.75090156,2993.3,2992.6,0.00309205]
[1766201816289,3.342,2993.2,2992.6,0.00309205]
[1766201817789,3.342,2993.2,2992.5,3.343]
[1766201818686,3.342,2993.2,2992.5,3.34615754]
[1766201821304,3.342,2993.2,2992.5,5.09470805]
[1766201823795,0.00235105,2993.3,2992.5,5.09470805]
[1766201825697,0.00235105,2993.3,2992.5,3.34615754]
[1766201828297,3.34435105,2993.3,2992.5,3.34615754]
[1766201830602,0.00235105,2993.3,2992.5,3.34615754]
[1766201830801,3.34435105,2993.3,2992.5,3.34615754]
[1766201834807,5.09290156,2993.3,2992.5,3.34615754]
[1766201835507,3.34435105,2993.3,2992.5,3.34615754]
[1766201839111,0.00235105,2993.3,2992.5,3.34615754]
[1766201839311,3.34435105,2993.3,2992.5,3.34615754]
[1766201843409,0.00235105,2993.3,2992.5,3.34615754]
[1766201843610,3.34435105,2993.3,2992.5,3.34615754]
[1766201844520,0.00235105,2993.3,2992.5,3.34615754]
[1766201844815,3.34435105,2993.3,2992.5,3.34615754]
[1766201845003,0.00235105,2993.3,2992.5,3.34615754]
[1766201845202,3.34435105,2993.3,2992.5,3.34615754]
[1766201851713,0.00235105,2993.3,2992.5,3.34615754]
[1766201851914,3.34435105,2993.3,2992.5,3.34615754]
[1766201875239,3.34435105,2993.3,2992.5,0.00315754]
[1766201875443,1.7469083,2993.0,2992.5,2.88755754]
[1766201875642,5.0879083,2993.0,2992.2,1.24489635]
[1766201875848,5.0879083,2993.0,2992.3,3.341]
[1766201876451,5.0879083,2993.0,2992.3,3.3440326]
[1766201877550,3.341,2993.0,2992.3,3.3440326]
[1766201880157,3.341,2993.0,2992.3,3.26e-05]
[1766201881347,3.342,2993.1,2992.3,3.26e-05]
[1766201881759,3.342,2993.0,2992.3,3.26e-05]
[1766201883561,0.00235105,2993.3,2992.3,3.26e-05]
[1766201883756,3.342,2993.2,2992.3,3.26e-05]
[1766201884062,0.00235105,2993.3,2992.3,3.26e-05]
[1766201884262,3.342,2993.2,2992.3,3.26e-05]
[1766201884860,0.00235105,2993.3,2992.3,3.26e-05]
[1766201885161,3.34435105,2993.3,2992.3,3.26e-05]
[1766201886360,0.00235105,2993.3,2992.3,3.26e-05]
[1766201886566,3.34435105,2993.3,2992.3,3.26e-05]
[1766201891566,3.342,2993.2,2992.3,3.26e-05]
[1766201894168,3.342,2993.2,2992.3,1.7469409]
[1766201898071,3.342,2993.2,2992.3,3.26e-05]
[1766201898872,3.34335105,2993.3,2992.3,3.26e-05]
[1766201901074,0.00235105,2993.3,2992.3,3.26e-05]
[1766201901274,3.34335105,2993.3,2992.3,3.26e-05]
[1766201904577,0.00235105,2993.3,2992.3,3.26e-05]
[1766201904873,3.34335105,2993.3,2992.3,3.26e-05]
[1766201907173,0.00235105,2993.3,2992.3,3.26e-05]
[1766201907377,0.00235105,2993.3,2992.5,1.7469083]
[1766201907576,0.00235105,2993.3,2992.6,3.341]
[1766201911384,0.00235105,2993.3,2992.6,5.08776776]
[1766201925096,0.00235105,2993.3,2992.6,5.08774155]
[1766201927790,3.341,2993.4,2992.6,5.08774155]
[1766201928096,2.129,2993.9,2992.8,1.74674155]
[1766201928297,3.341,2993.8,2992.8,1.74674155]
[1766201928894,3.34502405,2993.8,2992.8,1.74674155]
[1766201929100,1.74674155,2993.7,2992.6,5.08774155]
[1766201933694,3.34502405,2993.8,2992.6,5.08774155]
[1766201936991,0.00402405,2993.8,2992.6,5.08774155]
[1766201937191,3.341,2993.7,2992.6,5.08774155]
[1766201940601,0.00402405,2993.8,2992.6,5.08774155]
[1766201940795,3.341,2993.7,2992.6,5.08774155]
[1766201941289,0.00402405,2993.8,2992.6,5.08774155]
[1766201941290,3.341,2993.6,2992.8,1.74674155]
[1766201941600,0.00402405,2993.8,2993.0,1.74674155]
[1766201941803,3.34502405,2993.8,2993.0,1.74674155]
[1766201942002,0.00402405,2993.8,2993.0,1.74674155]
[1766201942302,3.34502405,2993.8,2993.0,1.74674155]
[1766201942799,0.00402405,2993.8,2993.0,1.74674155]
[1766201944105,1.74674155,2994.4,2993.4,1.74674155]
[1766201944299,1.74674155,2994.2,2993.6,0.00501211]
[1766201945303,1.75013297,2994.2,2993.6,0.00501211]
[1766201947900,0.00339142,2994.2,2993.6,0.00501211]
[1766201953406,0.00339142,2994.2,2993.7,3.341]
[1766201958717,1.74674155,2994.7,2993.7,3.341]
[1766201959019,3.341,2994.6,2993.7,3.341]
[1766201959610,3.34410113,2994.6,2993.7,3.341]
[1766201960211,0.00310113,2994.6,2993.7,3.341]
[1766201960512,3.341,2994.5,2993.7,3.341]
[1766201961316,5.08774155,2994.5,2993.7,3.341]
[1766201961714,1.74674155,2994.3,2993.7,3.341]
[1766201962214,0.00310113,2994.6,2993.7,3.341]
[1766201962417,1.74674155,2994.4,2993.7,3.341]
[1766201962818,1.74674155,2994.4,2993.6,0.00501211]
[1766201963014,1.74674155,2994.2,2993.6,0.00501211]
[1766201963215,5.08774155,2994.2,2993.6,0.00501211]
[1766201963718,5.08668757,2994.2,2993.6,0.00501211]
[1766201963916,3.341,2994.2,2993.6,0.00501211]
[1766201976130,1.74621967,2994.1,2992.2,0.43336757]
[1766201976336,1.74621967,2994.1,2992.7,13.358]
[1766201977136,0.00501211,2993.7,2993.1,0.00501211]
[1766201977334,0.00501211,2993.7,2993.2,3.341]
[1766201978030,0.00501211,2993.7,2993.1,0.00501211]
[1766201978237,1.74621967,2993.5,2992.9,3.341]
[1766201978528,1.74621967,2993.5,2992.5,1.22110802]
[1766201978732,1.74621967,2993.5,2992.6,3.341]
[1766201979329,1.74621967,2993.5,2992.3,3.26e-05]
[1766201979527,1.74621967,2993.2,2992.4,3.341]
[1766201979726,1.74621967,2992.9,2992.3,3.26e-05]
[1766201979937,5.08721967,2992.9,2992.3,3.26e-05]
[1766201980427,5.08721967,2992.9,2992.3,0.00504471]
[1766201981634,5.08721967,2992.9,2992.3,4.471e-05]
[1766201982133,1.74621967,2992.6,2991.8,3.341]
[1766201982337,5.08721967,2992.5,2991.7,3.341]
[1766201982530,3.341,2992.4,2991.3,1.22462426]
[1766201982730,3.34439818,2992.4,2991.4,3.341]
[1766201983033,1.75123178,2992.2,2991.6,1.211e-05]
[1766201983337,3.341,2992.1,2991.6,1.211e-05]
[1766201990242,0.00501211,2992.2,2991.6,1.211e-05]
[1766201990545,3.34701211,2992.2,2991.6,1.211e-05]
[1766201993949,5.09034418,2993.7,2992.2,1.74834418]
[1766201994149,1.74834418,2993.4,2992.3,3.342]
[1766201994346,1.74834418,2993.4,2992.4,3.342]
[1766201994847,1.74834418,2993.1,2992.4,3.342]
[1766201995647,3.34701211,2993.2,2992.4,3.342]
[1766202001049,0.00501211,2993.2,2992.4,3.342]
[1766202001257,3.342,2993.1,2992.4,3.342]
[1766202001960,0.00501211,2993.2,2992.4,3.342]
[1766202004852,3.34701211,2993.2,2992.4,3.342]
[1766202005257,0.00501211,2993.2,2992.4,3.342]
[1766202013852,3.342,2993.1,2992.4,3.342]
[1766202014762,3.342,2993.1,2992.1,3.342]
[1766202018562,0.00501211,2993.2,2992.1,5.09034418]
[1766202018763,3.342,2993.0,2992.1,5.09034418]
[1766202020371,0.00501211,2993.2,2992.4,1.74834418]
[1766202020668,0.00501211,2993.2,2992.5,3.342]
[1766202020857,3.342,2993.3,2992.5,3.342]
[1766202021056,2.8717,2993.3,2992.5,3.342]
[1766202021261,2.4014,2993.3,2992.5,3.342]
[1766202021457,1.9311,2993.3,2992.5,3.342]
[1766202022074,0.00501211,2993.2,2992.5,3.342]
[1766202024970,0.00369879,2993.4,2992.5,3.342]
[1766202025976,0.00501211,2993.2,2992.5,3.342]
[1766202026174,1.211e-05,2993.2,2992.5,3.342]
[1766202026476,3.342,2993.5,2992.5,3.342]
[1766202027172,1.74834418,2994.1,2992.5,3.342]
[1766202027371,0.00501211,2993.6,2992.5,3.342]
[1766202027670,3.342,2993.5,2992.5,3.342]
[1766202029780,0.00501211,2993.6,2992.5,3.342]
[1766202029980,0.00501211,2993.6,2992.7,1.74834418]
[1766202030179,0.00501211,2993.6,2992.8,3.342]
[1766202033477,0.00501211,2993.6,2992.8,5.08855553]
[1766202034583,0.00501211,2993.6,2993.0,1.74655553]
[1766202036784,0.00501211,2993.6,2993.1,3.341]
[1766202043785,1.211e-05,2993.6,2993.1,3.341]
[1766202043982,3.341,2993.8,2993.1,3.341]
[1766202044987,3.341,2993.8,2993.2,0.00501211]
[1766202047189,0.0033664,2994.1,2993.2,0.00501211]
[1766202047383,3.341,2994.0,2993.2,0.00501211]
[1766202047781,3.341,2993.9,2993.2,0.00501211]
[1766202048980,0.0033664,2994.1,2993.2,0.00501211]
[1766202049182,3.341,2994.0,2993.2,0.00501211]
[1766202049590,0.0033664,2994.1,2993.2,0.00501211]
[1766202049890,3.341,2994.0,2993.2,0.00501211]
[1766202050988,5.08755553,2994.0,2993.2,0.00501211]
[1766202053692,5.08755553,2994.0,2993.2,3.34601211]
[1766202054089,1.74655553,2993.6,2993.2,1.211e-05]
[1766202054489,3.341,2993.7,2992.8,3.341]
[1766202054490,1.74655553,2993.4,2992.8,3.341]
[1766202055094,5.08755553,2993.4,2992.8,2.377]
[1766202055393,5.09256764,2993.4,2992.8,2.38201211]
[1766202055689,1.74655553,2993.2,2992.8,2.38201211]
[1766202055894,1.74655553,2993.2,2992.8,0.00501211]
[1766202056197,5.09256764,2993.4,2992.8,0.00501211]
[1766202057194,1.74655553,2993.2,2992.6,1.37800405]
[1766202057399,3.341,2993.1,2992.0,1.74655553]
[1766202057594,1.74655553,2993.0,2992.0,1.74655553]
[1766202057801,1.74655553,2993.0,2992.1,3.341]
[1766202058098,1.74655553,2993.0,2992.3,0.00501211]
[1766202060294,1.74761964,2993.0,2992.3,0.00501211]
[1766202060999,5.08861964,2993.0,2992.3,0.00501211]
[1766202061395,0.00501211,2993.4,2992.3,0.00501211]
[1766202061702,1.74761964,2993.2,2992.3,0.00501211]
[1766202075208,1.74761964,2992.8,2992.3,0.00501211]
[1766202075414,1.74761964,2992.8,2992.1,3.342]
[1766202076514,1.74761964,2992.8,2992.2,0.00501211]
[1766202077310,0.00501211,2993.4,2992.7,1.74761964]
[1766202077515,0.00501211,2993.4,2992.8,3.342]
[1766202079710,3.34701211,2993.4,2992.8,3.342]
[1766202080816,1.74761964,2993.3,2992.8,3.342]
[1766202081911,1.74761964,2993.3,2992.6,3.342]
[1766202082110,1.74761964,2993.1,2992.6,3.342]
[1766202082517,1.74761964,2993.3,2992.6,3.342]
[1766202085118,1.74761964,2993.3,2992.4,1.45519474]
[1766202085420,1.74761964,2993.3,2992.4,3.342]
[1766202090228,5.96801211,2993.4,2992.4,3.342]
[1766202091116,3.342,2993.3,2992.4,3.342]
[1766202091724,0.00501211,2993.4,2992.4,3.342]
[1766202091932,3.342,2993.2,2992.4,3.342]
[1766202092832,1.74761964,2993.1,2992.2,0.00501211]
[1766202093026,1.74761964,2993.1,2992.4,3.342]
[1766202093632,1.74761964,2993.1,2992.2,0.00501211]
[1766202093932,1.74761964,2993.1,2992.3,3.342]
[1766202095429,3.342,2993.2,2992.3,3.342]
[1766202100532,1.74760687,2993.3,2992.3,3.342]
[1766202100737,3.342,2993.2,2992.3,3.342]
[1766202103852,0.00501211,2993.4,2992.3,3.342]
[1766202104040,3.342,2993.1,2992.3,3.342]
[1766202105844,0.00501211,2993.4,2992.3,3.342]
[1766202106046,3.342,2993.3,2992.3,3.342]
[1766202106843,3.342,2993.2,2992.3,3.342]
[1766202107045,3.34701211,2993.4,2992.6,1.74760687]
[1766202107245,0.87121211,2993.4,2992.7,3.342]
[1766202107545,0.0033664,2994.1,2992.7,3.342]
[1766202107846,3.342,2994.0,2992.9,1.74760687]
[1766202108040,3.342,2994.0,2993.0,3.342]
[1766202108241,0.00501211,2993.8,2993.0,3.342]
[1766202109148,3.34701211,2993.8,2993.0,3.342]
[1766202114445,5.09461898,2993.8,2992.9,3.341]
[1766202115145,1.74760687,2993.5,2992.7,1.45737336]
[1766202115445,3.341,2993.4,2992.7,1.45737336]
[1766202115747,3.341,2993.4,2992.6,3.341]
[1766202141658,7.59006113,2993.4,2992.3,3.50818]
[1766202141859,5.843,2993.4,2992.2,0.00501211]
[1766202142064,1.74706113,2992.8,2992.2,0.00501211]
[1766202142260,4.719,2992.7,2991.7,4.66779842]
[1766202142464,4.719,2992.7,2991.7,3.341]
[1766202143462,4.719,2992.7,2991.9,0.00501211]
[1766202149068,1.74706113,2992.5,2991.9,1.211e-05]
[1766202149261,3.342,2992.4,2991.9,1.211e-05]
[1766202163087,1.74818203,2992.3,2991.9,1.211e-05]
[1766202171086,1.74818203,2992.8,2991.9,1.211e-05]
[1766202171292,1.74818203,2992.6,2991.9,1.211e-05]
[1766202171494,1.74818203,2992.4,2991.9,1.211e-05]
[1766202173500,3.343,2992.3,2991.9,1.211e-05]
[1766202173697,3.004,2992.6,2991.9,1.211e-05]
[1766202173902,3.343,2992.5,2991.9,1.211e-05]
[1766202174798,1.74818203,2992.4,2991.9,1.211e-05]
[1766202183209,1.74818203,2992.0,2991.4,3.341]
[1766202183504,3.342,2991.9,2991.3,1.34787038]
[1766202184213,3.34701211,2991.9,2991.3,1.35288249]
[1766202184520,0.00501211,2991.9,2991.3,1.35288249]
[1766202184818,3.342,2991.8,2991.3,1.35288249]
[1766202187310,0.00501211,2991.9,2991.4,1.74818203]
[1766202187518,3.343,2992.2,2991.8,1.74818203]
[1766202187809,3.343,2992.2,2991.4,3.343]
[1766202187810,3.343,2992.2,2991.6,1.74818203]
[1766202188504,3.35050822,2992.2,2991.6,1.74818203]
[1766202189609,0.00750822,2992.2,2991.6,1.74818203]
[1766202192814,0.00750822,2992.2,2991.4,3.343]
[1766202193112,0.00750822,2992.2,2991.5,1.74818203]
[1766202196107,0.00750822,2992.2,2991.5,1.74804486]
[1766202204922,0.00750822,2992.2,2991.4,3.343]
[1766202205122,0.00750822,2992.2,2991.5,1.74804486]
[1766202206222,0.00750822,2992.2,2991.4,3.343]
[1766202206415,0.00750822,2992.2,2991.5,1.74804486]
[1766202207322,3.35050822,2992.2,2991.5,1.74804486]
[1766202209033,0.04945237,2993.7,2992.0,1.74804486]
[1766202209226,1.74804486,2993.2,2992.0,1.74804486]
[1766202209525,3.343,2993.1,2992.0,1.74804486]
[1766202210225,0.00501211,2992.8,2992.0,1.74804486]
[1766202210424,3.343,2992.7,2992.0,1.74804486]
[1766202212528,0.00501211,2992.8,2992.0,1.74804486]
[1766202212729,3.342,2992.7,2992.2,1.74804486]
[1766202215725,0.00501211,2992.8,2992.2,1.74804486]
[1766202215921,3.342,2992.7,2992.2,1.74804486]
[1766202217031,3.342,2992.7,2991.8,3.343]
[1766202217232,3.342,2992.7,2991.9,1.74804486]
[1766202218834,0.00501211,2992.8,2991.9,1.74804486]
[1766202219035,3.342,2992.7,2991.9,1.74804486]
[1766202219430,3.342,2992.7,2991.8,3.343]
[1766202229632,3.342,2992.7,2991.8,5.0905975]
[1766202233249,3.342,2992.7,2991.8,3.343]
[1766202238056,0.00501211,2992.8,2991.8,3.343]
[1766202238258,3.342,2992.7,2991.8,3.343]
[1766202243466,1.7475975,2992.3,2991.3,0.00768981]
[1766202243660,0.00501211,2992.8,2991.3,0.00768981]
[1766202243861,3.342,2992.7,2991.3,0.00768981]
[1766202244053,3.787,2992.6,2991.3,0.00768981]
[1766202249166,0.00501211,2992.8,2991.3,0.00768981]
[1766202249370,3.836,2992.7,2991.3,0.00768981]
[1766202256680,0.00501211,2992.8,2991.3,0.00768981]
[1766202256868,7.265,2992.7,2991.3,0.00768981]
[1766202258172,0.00501211,2992.8,2991.3,0.00768981]
[1766202258378,3.343,2992.7,2991.5,1.7475975]
[1766202258674,3.343,2992.7,2991.6,3.343]
[1766202261574,0.00501211,2992.8,2991.6,3.343]
[1766202261876,3.343,2992.7,2991.6,3.343]
[1766202269480,3.343,2992.7,2991.3,3.34968981]
[1766202269481,1.74776031,2992.4,2991.3,3.34968981]
[1766202269686,3.342,2992.3,2991.3,3.34968981]
[1766202279387,3.342,2992.3,2991.3,5.09794938]
[1766202279588,1.06776822,2992.3,2990.6,1.74825957]
[1766202279788,0.16716,2992.7,2990.8,1.74825957]
[1766202279986,1.74825957,2992.1,2991.0,1.74825957]
[1766202280189,3.343,2992.0,2991.0,1.74825957]
[1766202280589,3.343,2992.0,2991.2,0.00501211]
[1766202282188,1.74825957,2991.9,2991.2,0.00501211]
[1766202282388,1.03727374,2992.4,2991.2,0.00501211]
[1766202282692,1.74825957,2992.1,2991.2,0.00501211]
[1766202282888,3.343,2992.0,2991.2,0.00501211]
[1766202288198,1.74825957,2991.9,2991.0,0.00329525]
[1766202289294,1.74825957,2991.9,2991.2,0.00501211]
[1766202289900,1.74825957,2991.9,2991.2,1.211e-05]
[1766202290795,1.74825957,2991.5,2991.2,1.211e-05]
[1766202290997,5.09125957,2991.5,2991.2,1.211e-05]
[1766202291201,3.343,2991.5,2991.2,1.211e-05]
[1766202301518,3.343,2991.6,2991.2,1.211e-05]
[1766202304114,1.07118767,2992.4,2991.2,1.211e-05]
[1766202304317,2.80647606,2992.4,2991.4,1.74825957]
[1766202304514,4.732,2992.3,2991.4,1.74825957]
[1766202304921,4.732,2992.3,2991.2,5.09127168]
[1766202306924,6.48025957,2992.3,2991.2,5.09127168]
[1766202307718,3.343,2992.2,2991.2,5.09127168]
[1766202309019,3.343,2992.2,2991.2,3.34301211]
[1766202309226,3.343,2992.2,2991.2,5.09127168]
[1766202317130,1.74825957,2992.3,2991.2,5.09127168]
[1766202317329,3.343,2992.2,2991.2,5.09127168]
[1766202318029,1.74825957,2992.3,2991.2,5.09127168]
[1766202318229,3.343,2992.2,2991.2,5.09127168]
[1766202322131,1.74825957,2992.1,2991.2,3.34301211]
[1766202322731,1.74825957,2991.9,2991.2,3.34301211]
[1766202323030,3.343,2991.8,2991.2,1.211e-05]
[1766202328332,1.07207855,2992.3,2991.2,1.211e-05]
[1766202328537,1.74825957,2992.1,2991.2,1.211e-05]
[1766202332038,1.7486917,2992.0,2991.2,1.211e-05]
[1766202332238,3.343,2991.9,2991.2,1.211e-05]
[1766202334138,1.08980308,2992.4,2991.2,1.211e-05]
[1766202334343,1.7486917,2992.2,2991.2,1.211e-05]
[1766202341350,9.54464233,2992.3,2991.2,1.211e-05]
[1766202346950,1.74864233,2992.3,2991.2,1.211e-05]
[1766202347158,13.046,2992.2,2991.2,1.211e-05]
[1766202356159,8.078,2992.2,2991.2,1.211e-05]
[1766202356458,3.343,2992.1,2991.3,5.09164233]
[1766202358158,3.343,2992.1,2991.3,3.343]
[1766202375468,2.83844541,2992.4,2991.3,3.343]
[1766202375669,6.183,2992.3,2991.3,3.343]
[1766202375974,2.83844541,2992.4,2991.3,3.343]
[1766202376173,8.054,2992.3,2991.3,3.343]
[1766202383877,1.74864233,2991.8,2991.2,1.211e-05]
[1766202384081,8.054,2992.3,2991.0,0.00329525]
[1766202384082,1.74864233,2991.5,2991.0,0.00329525]
[1766202384276,3.343,2991.4,2990.7,3.343]
[1766202385183,3.343,2991.4,2990.8,0.00501211]
[1766202390290,5.09164233,2991.4,2990.7,3.34647323]
[1766202391090,3.343,2991.4,2990.7,3.34647323]
[1766202391390,3.343,2991.4,2990.8,0.00334142]
[1766202395392,1.09679793,2992.0,2990.8,0.00334142]
[1766202395594,3.343,2991.9,2990.9,1.74864233]
[1766202395896,3.343,2991.9,2991.0,3.343]
[1766202396689,1.09679793,2992.0,2991.0,3.343]
[1766202396888,3.343,2991.9,2991.0,3.343]
[1766202403590,1.09679793,2992.0,2991.0,3.343]